Cogmind - Beta 10.1 @@@ ROGUE MODE // 2020.10.15 @ 09:51:56 Player: Shamgod Result: Destroyed by P-60 Hacker with Shock Rifle Performance ------------- Evolutions (3) 1500 Regions Visited (6) 1200 Robots Destroyed (50) 250 Value Destroyed (1115) 1115 Prototype IDs (2) 40 Alien Tech Used (0) 0 Bonus (0) 0 TOTAL SCORE: 4105 Bonus ------- None Cogmind --------- Core Integrity 0/700 Matter 207/300 Energy 29/100 System Corruption 3% Temperature Cool (0) Movement Core (400) Ox7 Location -7/Factory Parts ------- > --- POWER (1) -------- (None) > --- PROPULSION (3) --- (None) > --- UTILITY (6) ------ Medium Storage Unit Large Storage Unit Visual Processing Unit > --- WEAPON (3) ------- (None) > --- INVENTORY (14) --- Light Ion Engine Light Nuclear Core Heat Sink Heat Sink Hardened Light Armor Plating Peak State ------------ > --- POWER ------------ Light Ion Engine > --- PROPULSION ------- Light Treads Wheel Wheel > --- UTILITY ---------- Medium Storage Unit Visual Processing Unit Experimental Sensor Array Bomb Drone Bay > --- WEAPON ----------- Light EM Pulse Cannon Light Assault Rifle > --- INVENTORY -------- Heat Sink Large Storage Unit Medium Laser Grenade Launcher [Rating: 30] Favorites ----------- Power Light Ion Engine Engine Light Ion Engine Power Core Light Nuclear Core Propulsion Wheel Treads Light Treads Leg Aluminum Leg Wheel Wheel Flight Unit Flight Unit Utility Medium Storage Unit Device Sensor Array Storage Medium Storage Unit Processor Visual Processing Unit Protection Light Armor Plating Weapon Light Assault Rifle Energy Gun EM Pulse Gun Energy Cannon Light EM Pulse Cannon Ballistic Gun Light Assault Rifle Ballistic Cannon Flak Cannon Launcher Grenade Launcher Build | -11 -10 -10 -10 -9 -8 -7 ------- Run | Scr Mat Min Exi Min Mat Fac Slots Evolved 6 | . . . . . 4 2 Power . | . . . . . . . Propulsion 1 | . . . . . 1 . Utility 4 | . . . . . 3 1 Weapon 1 | . . . . . . 1 Parts Attached 71 | 12 17 4 . 5 18 15 Power 17 | 4 3 1 . 1 4 4 Engine 16 | 4 3 1 . 1 4 3 Core 1 | . . . . . . 1 Reactor . | . . . . . . . Propulsion 17 | 4 3 1 . . 6 3 Treads 7 | 2 1 . . . 3 1 Leg 3 | 1 . . . . 2 . Wheel 4 | 1 2 1 . . . . Hover . | . . . . . . . Flight 3 | . . . . . 1 2 Utility 19 | 2 7 . . 1 6 3 Device 10 | . 3 . . 1 4 2 Storage 7 | 2 4 . . . 1 . Processor 1 | . . . . . 1 . Hackware . | . . . . . . . Protection 1 | . . . . . . 1 Artifact . | . . . . . . . Weapon 18 | 2 4 2 . 3 2 5 Energy Gun 8 | 2 3 . . . 1 2 Energy Cannon 1 | . . . . 1 . . Ballistic Gun 5 | . 1 1 . 2 . 1 Ballistic Cannon 1 | . . . . . 1 . Launcher 3 | . . 1 . . . 2 Special Weapon . | . . . . . . . Impact Weapon . | . . . . . . . Slashing Weapon . | . . . . . . . Piercing Weapon . | . . . . . . . Special Melee Weapon . | . . . . . . . Unidentified Prototypes 2 | . . . . 1 1 . Parts Lost 31 | . 5 1 . 1 7 17 Power 6 | . 1 1 . . 1 3 Propulsion 12 | . 2 . . . 5 5 Utility 3 | . . . . . . 3 Weapon 10 | . 2 . . 1 1 6 Highest Loss Streak 17 | . 3 1 . 1 3 17 Average Slot Usage (%) 92 | . 95 98 100 99 77 93 Engine 11 | . 13 12 14 14 8 6 Treads 9 | . 19 . . . 7 11 Leg 2 | . . . . . 6 6 Wheel 12 | . 6 28 28 28 1 . Device 14 | . 13 14 14 14 15 14 Storage 13 | . 14 14 14 14 10 15 Processor 2 | . . . . . 9 7 Energy Gun 8 | . 16 9 . . 1 10 Energy Cannon 1 | . . . . . 7 . Ballistic Gun 9 | . 9 14 14 13 5 . Ballistic Cannon 1 | . . . . . 3 6 Launcher 3 | . . 4 14 14 . 2 Naked Turns . | . . . . . . . Heaviest Build 49 | 15 23 16 16 17 42 49 Greatest Support 48 | 40 40 20 20 20 40 48 Greatest Overweight (x) 9 | 1 1 . . . 4 9 Average Overweight (x) . | . . . . . 1 1 Largest Inventory Capacity 14 | 8 12 8 8 8 14 14 Average Capacity 8 | 6 8 8 8 8 9 14 Most Carried 13 | 8 10 8 8 8 9 13 Average Carried 7 | 4 8 7 7 7 4 9 Final Capacity 14 | 8 8 8 8 8 14 14 Final Carried 9 | 8 8 8 8 8 9 5 Class Distribution -------------------- 48% | Mutant 43% | Scavenger-Mutant 7% | Scavenger-Skirmisher Dominant Class ---------------- Mutant | -10/Materials Scavenger-Mutant | -10/Mines Scavenger-Mutant | -10/Exiles Scavenger-Mutant | -9/Mines Mutant | -8/Materials Scavenger-Skirmisher | -7/Factory Resources | -11 -10 -10 -10 -9 -8 -7 ----------- Run | Scr Mat Min Exi Min Mat Fac Matter Collected 944 | 320 183 70 7 43 234 87 Remotely . | . . . . . . . Salvage Created 1449 | 86 706 66 . 45 318 228 Parts 94 | 3 39 9 . 10 18 15 Haulers Intercepted 1 | . 1 . . . . . Recyclers Shooed 5 | . 3 1 . . . 1 Parts Field Recycled . | . . . . . . . Retrieved Matter . | . . . . . . . Parts Self-Destructed . | . . . . . . . Prevented . | . . . . . . . Kills | -11 -10 -10 -10 -9 -8 -7 ------- Run | Scr Mat Min Exi Min Mat Fac Combat Hostiles Destroyed 37 | . 11 4 . 7 9 6 Guns 15 | . 6 4 . . 1 4 Cannons 9 | . . . . . 7 2 AOE 12 | . 4 . . 7 1 . Classes Destroyed 8 | 1 6 . . . 1 . Worker 5 | . 3 1 . . . 1 Builder 2 | . 1 . . . . 1 Hauler 1 | . 1 . . . . . Recycler 3 | 1 2 . . . . . Watcher 2 | . 1 . . . 1 . Swarmer 21 | . 3 3 . 7 4 4 Grunt 13 | . 8 . . . 3 2 Sentry 2 | . . . . . 2 . Best Kill Streak 8 | 1 8 3 . 4 3 6 Combat Bots Only 4 | . 3 3 . 4 3 4 Max Kills in Single Turn 3 | 1 2 1 . 3 1 2 Gunslinging . | . . . . . . . Exploded 3 | . 2 . . 3 1 . Melee . | . . . . . . . Uniques/NPCs Destroyed 1 | . . 1 . . . . YI-UF0 (-10/Mines) Combat | -11 -10 -10 -10 -9 -8 -7 -------- Run | Scr Mat Min Exi Min Mat Fac Damage Taken 3999 | . 636 190 . 110 1040 2023 Core 1240 | . 197 33 . . 299 711 Absorbed by Shields . | . . . . . . . Core Remaining (%) 51 | 100 . . . 8 45 . Volleys Fired 102 | 2 46 22 . 4 17 11 Largest 3 | 2 2 2 . 2 2 3 Hottest 149 | 80 80 70 . 50 100 149 Shots Fired 202 | 4 84 44 . 7 31 32 Gun 162 | 4 84 42 . 3 7 22 Cannon 34 | . . . . . 24 10 Launcher 6 | . . 2 . 4 . . Special . | . . . . . . . Kinetic 71 | . 19 22 . 3 16 11 Thermal 25 | . 4 20 . . . 1 Explosive 6 | . . 2 . 4 . . Electromagnetic 100 | 4 61 . . . 15 20 Robot Hit Streak 18 | 1 18 3 . 2 8 8 Robot Miss Streak 9 | 2 5 6 . 1 4 9 Penetration Max . | . . . . . . . Secondary Targets 3 | . 1 2 . . . . Max Gunslinging Chain 1 | . 1 1 . . . . Shots Hit Robots 117 | 1 55 21 . 4 22 14 Core Hits 84 | 1 27 8 . 7 19 22 Critical Hits 1 | . . . . 1 . . Critical Kills . | . . . . . . . Critical Parts Destroyed 1 | . . . . 1 . . Melee Attacks . | . . . . . . . Impact . | . . . . . . . Slashing . | . . . . . . . Piercing . | . . . . . . . Sneak Attacks . | . . . . . . . Combat Hostiles . | . . . . . . . Follow-up Attacks . | . . . . . . . Damage Inflicted 2722 | 30 1108 227 . 396 534 427 Guns 1177 | 30 628 215 . 25 45 234 Cannons 488 | . . . . . 389 99 Explosions 1057 | . 480 12 . 371 100 94 Melee . | . . . . . . . Ramming . | . . . . . . . Kinetic 468 | . 65 87 . 25 192 99 Thermal 783 | . 506 128 . . 100 49 Explosive 383 | . . 12 . 371 . . Electromagnetic 1088 | 30 537 . . . 242 279 Impact . | . . . . . . . Slashing . | . . . . . . . Piercing . | . . . . . . . Highest Corruption 3 | . . . . . 3 3 Average Corruption 2 | . . . . . 3 1 Corruption Purged . | . . . . . . . Effects 8 | . . . . . 8 . Message Errors 1 | . . . . . 1 . Matter Fused 1 | . . . . . 1 . Heat Flow Errors 1 | . . . . . 1 . Energy Discharges 1 | . . . . . 1 . Data Loss (minor) 3 | . . . . . 3 . Weapon Failures 1 | . . . . . 1 . Overload Shots . | . . . . . . . Overflow Damage 128 | . 92 . . 36 . . Projectiles . | . . . . . . . Explosions 128 | . 92 . . 36 . . Melee . | . . . . . . . Knockbacks 9 | . . . . . 5 4 Impact . | . . . . . . . Kinetic 9 | . . . . . 5 4 Secondary . | . . . . . . . Self-Inflicted Damage 540 | . 354 21 . 71 55 39 Shots 13 | . 6 1 . 3 1 2 Rammed 2 | . . . . . 2 . Targets Rammed 2 | . . . . . 2 . Kicked . | . . . . . . . Crushed . | . . . . . . . Highest Temperature 454 | 36 125 120 . 20 87 454 Average Temperature 63 | 20 40 36 . 10 21 154 Received Heat Transfer 963 | . 135 . . . 90 738 Effects 1 | . . . . . . 1 Shutdowns 1 | . . . . . . 1 Siege Activations . | . . . . . . . Robots Corrupted 1 | . 1 . . . . . Combat Hostiles 1 | . 1 . . . . . Parts Fried 1 | . . . . . 1 . Impact Corruptions . | . . . . . . . Robots Melted . | . . . . . . . Combat Hostiles . | . . . . . . . Parts Melted 1 | . . 1 . . . . Heat Transferred 1181 | . 624 370 . . 100 87 Parts Sabotaged . | . . . . . . . Parts Stolen . | . . . . . . . Parts Stripped . | . . . . . . . Power Chain Reactions 6 | . 5 . . . 1 . Missiles Intercepted . | . . . . . . . Alert | -11 -10 -10 -10 -9 -8 -7 ------- Run | Scr Mat Min Exi Min Mat Fac Peak Influence 389 | 5 249 116 . 210 164 389 Initial 81 | . 3 26 . . 81 74 Average 101 | 1 110 87 . 110 77 172 Maximum Alert Level 1 | . 1 . . 1 . 1 Low Security (%) 90 | 100 86 100 . 76 100 72 Level 1 9 | . 13 . . 23 . 27 Level 2 . | . . . . . . . Level 3 . | . . . . . . . Level 4 . | . . . . . . . Level 5 . | . . . . . . . High Security . | . . . . . . . Max Security . | . . . . . . . Squads Dispatched 11 | . 2 . . . 5 4 Investigation 6 | . 2 . . . 3 1 Extermination 1 | . . . . . . 1 Reinforcement 4 | . . . . . 2 2 Assault . | . . . . . . . Garrison . | . . . . . . . Intercept . | . . . . . . . Construction Impeded . | . . . . . . . Haulers Reinforced . | . . . . . . . Stealth | -11 -10 -10 -10 -9 -8 -7 --------- Run | Scr Mat Min Exi Min Mat Fac Distress Signals 3 | . . . . . 2 1 Communications Jammed 1 | . . . . . . 1 Distress Signals . | . . . . . . . Times Spotted 69 | . 17 4 . 7 21 20 Peak Tracking Total 10 | . 3 3 . 3 5 10 Tactical Retreats 4 | . . . . . 2 2 Traps | -11 -10 -10 -10 -9 -8 -7 ------- Run | Scr Mat Min Exi Min Mat Fac Traps Triggered . | . . . . . . . Indirectly . | . . . . . . . Trap Hack Attempts . | . . . . . . . Triggered . | . . . . . . . Disarmed . | . . . . . . . Reprogrammed . | . . . . . . . Reused . | . . . . . . . Traps Extracted . | . . . . . . . Installed . | . . . . . . . Triggered . | . . . . . . . Machines | -11 -10 -10 -10 -9 -8 -7 ---------- Run | Scr Mat Min Exi Min Mat Fac Machines Disabled 15 | . 5 . . 4 . 6 Max in Single Turn 3 | . 2 . . 2 . 3 Machines Sabotaged . | . . . . . . . Garrisons Compromised . | . . . . . . . Overloaded Fab Kills . | . . . . . . . Fab Network Shutdowns . | . . . . . . . Hacking | -11 -10 -10 -10 -9 -8 -7 --------- Run | Scr Mat Min Exi Min Mat Fac Machines Accessed 11 | . 5 . 1 1 3 1 Terminals 6 | . 4 . . . 2 . Fabricators 1 | . . . . . . 1 Repair Stations 2 | . 1 . . . 1 . Recycling Units . | . . . . . . . Scanalyzers . | . . . . . . . Garrison Access . | . . . . . . . Total Hacks 55 | . 15 . 23 1 13 3 Successful 41 | . 11 . 23 1 5 1 Failed 14 | . 4 . . . 8 2 Catastrophic 1 | . . . . . 1 . Database Lockouts . | . . . . . . . Manual 24 | . 14 . 1 . 5 4 Terminals 16 | . 10 . . . 6 . Fabricators 3 | . . . . . . 3 Repair Stations 12 | . 5 . . . 7 . Recycling Units . | . . . . . . . Scanalyzers . | . . . . . . . Garrison Access . | . . . . . . . Terminal Hacks 32 | . 7 . 23 1 1 . Record 25 | . 1 . 23 . 1 . Robot Analysis 3 | . 3 . . . . . Open Door 1 | . . . . 1 . . Branch Access Points 1 | . 1 . . . . . Alert Level 1 | . 1 . . . . . Locate Traps 1 | . 1 . . . . . Fabricator Hacks . | . . . . . . . Repair Station Hacks 5 | . 2 . . . 3 . Scan Component 3 | . 1 . . . 2 . Repair 2 | . 1 . . . 1 . Recycling Unit Hacks . | . . . . . . . Scanalyzer . | . . . . . . . Garrison Access Hacks . | . . . . . . . Unauthorized Hacks 4 | . 2 . . . 1 1 Terminals 2 | . 1 . . . 1 . Botnet 2 | . 1 . . . 1 . Fabricators 1 | . . . . . . 1 Haulers 1 | . . . . . . 1 Repair Stations 1 | . 1 . . . . . Mechanics 1 | . 1 . . . . . Recycling Units . | . . . . . . . Scanalyzers . | . . . . . . . Garrison Access . | . . . . . . . Data Cores Recovered . | . . . . . . . Used . | . . . . . . . Hacking Detections 9 | . 5 . . . 3 1 Full Trace Events 8 | . 4 . . . 3 1 Feedback Events . | . . . . . . . Feedback Blocked . | . . . . . . . Robot Schematics Acquired . | . . . . . . . Robots Built . | . . . . . . . Matter . | . . . . . . . Time . | . . . . . . . Total Robot Build Rating . | . . . . . . . Part Schematics Acquired . | . . . . . . . Parts Built . | . . . . . . . Matter . | . . . . . . . Time . | . . . . . . . Total Part Build Rating . | . . . . . . . Parts Repaired 1 | . 1 . . . . . Time 106 | . 26 . . . 80 . Parts Recycled . | . . . . . . . Recycled Matter . | . . . . . . . Retrieved Matter . | . . . . . . . Retrieved Components . | . . . . . . . Parts Scanalyzed . | . . . . . . . Part Schematics Acquired . | . . . . . . . Parts Damaged . | . . . . . . . Bothacking | -11 -10 -10 -10 -9 -8 -7 ------------ Run | Scr Mat Min Exi Min Mat Fac Used RIF Installer . | . . . . . . . Robots Hacked . | . . . . . . . Non-combat . | . . . . . . . Combat . | . . . . . . . Robot Hacks Applied . | . . . . . . . Relay Couplers Released . | . . . . . . . Robots Rewired . | . . . . . . . Allies Hacked . | . . . . . . . Hacks Repelled . | . . . . . . . Allies | -11 -10 -10 -10 -9 -8 -7 -------- Run | Scr Mat Min Exi Min Mat Fac Total Allies . | . . . . . . . Largest Group . | . . . . . . . Highest-Rated Group . | . . . . . . . Highest-Rated Ally . | . . . . . . . Total Orders . | . . . . . . . Ally Attacks 14 | . . . . . 14 . Total Damage . | . . . . . . . Kills . | . . . . . . . Allies Corrupted . | . . . . . . . Allies Melted . | . . . . . . . Intel | -11 -10 -10 -10 -9 -8 -7 ------- Run | Scr Mat Min Exi Min Mat Fac Robot Analysis Total 3 | . 3 . . . . . Derelict Logs Recovered 2 | . . 1 . 1 . . Drone Launches 16 | . . . . . 16 . Drone Recoveries . | . . . . . . . Exploration | -11 -10 -10 -10 -9 -8 -7 ------------- Run | Scr Mat Min Exi Min Mat Fac Turns Passed 3444 | 111 1062 507 371 294 778 321 Spaces Moved 2435 | 64 609 534 460 321 312 135 Core 8 | 5 . . . . . 3 Treads 715 | 25 336 . . . 222 132 Legs 93 | 3 . . . . 90 . Wheels 1619 | 31 273 534 460 321 . . Hover . | . . . . . . . Flight . | . . . . . . . Fastest Speed 50 | 50 80 80 80 80 120 160 Average Speed 112 | 121 131 80 80 80 180 189 Slowest Speed 500 | 160 180 80 80 80 240 500 Overloaded Moves . | . . . . . . . Propulsion Burnouts . | . . . . . . . Robots Hopped . | . . . . . . . Cave-ins Triggered 1 | . . . . . 1 . Exploration Rate (%) 48 | 4 62 93 78 60 35 5 Regions Visited 6 Branch Regions 3 Pre-discovered Areas 1 | . . . 1 . . . Known Exits Taken 2 | . 1 . . . 1 . Unknown Exits Taken 4 | 1 . 1 1 1 . . Scrap Searched 1 | . . . . 1 . . Spaces Dug . | . . . . . . . Terrain Destroyed 98 | . 48 7 . 24 3 16 Melee . | . . . . . . . Projectile . | . . . . . . . AOE 98 | . 48 7 . 24 3 16 Terrain Rammed . | . . . . . . . Walls Destroyed . | . . . . . . . Machines Disabled . | . . . . . . . Actions | -11 -10 -10 -10 -9 -8 -7 --------- Run | Scr Mat Min Exi Min Mat Fac Total 2937 | 87 793 575 463 353 491 175 Wait 259 | . 90 9 . 16 137 7 Move 2428 | 63 608 533 459 320 310 135 Hop . | . . . . . . . Pick Up 40 | 9 18 3 2 2 3 3 Fast Attach 24 | 7 5 . . 2 8 2 Attach 23 | . 5 1 . . 6 11 Detach 7 | . 1 . . . 2 4 Swap 24 | 5 7 3 . 3 4 2 Drop 27 | 1 13 4 2 6 1 . Fire 102 | 2 46 22 . 4 17 11 Melee . | . . . . . . . Ram . | . . . . . . . Kick . | . . . . . . . Crush 2 | . . . . . 2 . Escape Stasis 1 | . . . . . 1 . Rewire . | . . . . . . . Trap . | . . . . . . . Miscellaneous . | . . . . . . . Route ------- -11/Scrapyard -10/Materials (discovered 3 exits: [*Mat x2] / *Min) -10/Mines (discovered 3 exits: [*Mat x2] / *Exi) -10/Exiles -9/Mines -8/Materials -7/Factory History --------- Turn | Location | Event 14 | -11/Scrapyard | Discovered new exit (range 16) 112 | -11/Scrapyard | Entered Materials 300 | -10/Materials | Build established: Mutant 419 | -10/Materials | Lost 3 parts (1p1n1w) 509 | -10/Materials | Discovered new exit (range 15) 553 | -10/Materials | Identified exit to Mines 743 | -10/Materials | Repaired EM Pulse Gun 809 | -10/Materials | Discovered new exit (range 15) 956 | -10/Materials | Discovered new exit (range 9) 957 | -10/Materials | Core integrity fell below 50% 1174 | -10/Materials | Entered Mines 1176 | -10/Mines | Core integrity fell below 20% 1215 | -10/Mines | YI-UF0 nonchalantly dropped a Grenade Launcher on the ground 1375 | -10/Mines | Discovered new exit (range 9) 1465 | -10/Mines | Learned location of 1 exit from Materials 1479 | -10/Mines | Build established: Scavenger-Mutant 1551 | -10/Mines | Destroyed YI-UF0 1631 | -10/Mines | Discovered new exit (range 10) 1676 | -10/Mines | Deemed a non-threat by the Exiles lab entrance 1676 | -10/Mines | Discovered new exit (range 5) 1681 | -10/Mines | Entered Exiles 1706 | -10/Exiles | Met 8R-AWN 1730 | -10/Exiles | Met EX-HEX 1785 | -10/Exiles | Met EX-DEC 1825 | -10/Exiles | Visited The Gauntlet 1965 | -10/Exiles | Learned location of Zion (-7) 2033 | -10/Exiles | Discovered new exit (range 14) 2052 | -10/Exiles | Entered Mines 2093 | -9/Mines | Found a damaged Exp. Sensor Array with a note attached 2095 | -9/Mines | Found Prototype Device 2095 | -9/Mines | Identified Exp. Sensor Array 2169 | -9/Mines | Found the Drone Emporium 2173 | -9/Mines | Found Prototype Device 2333 | -9/Mines | Discovered new exit (range 8) 2346 | -9/Mines | Entered Materials 2346 | -8/Materials | Evolved 4 slots: Propulsion x1, Utility x3 2346 | -8/Materials | Identified Bomb Drone Bay 2347 | -8/Materials | Identified exit to Factory 2670 | -8/Materials | Crushed by falling debris 2671 | -8/Materials | Core integrity fell below 50% 2999 | -8/Materials | Lost 3 parts (2n1w) 3124 | -8/Materials | Entered Factory 3124 | -7/Factory | Evolved 2 slots: Utility x1, Weapon x1 3430 | -7/Factory | Core integrity fell below 50% 3441 | -7/Factory | Core integrity fell below 20% 3445 | -7/Factory | Destroyed by P-60 Hacker with Shock Rifle Last Messages --------------- 03429_ K-01 Serf collects debris. 03429_ U-05 Engineer lays Concrete. 03433_ K-01 Serf collects debris. 03433_ U-05 Engineer lays Concrete. 03433_ Lgt. Ion Engine destroyed. 03434_ U-05 Engineer lays Concrete. 03436_ K-01 Serf collects debris. 03436_ Transmission Jammer destroyed. 03437_ U-05 Engineer lays Concrete. 03437_ C-30 ARC bursts open, deploying its payload. 03437_ P-60 Hacker unfolds itself. 03437_ U-05 Engineer lays Concrete. 03439_ Flight Unit destroyed. 03440_ U-05 Engineer lays Concrete. 03440_ K-01 Serf collects debris. 03440_ Lgt. Ion Engine destroyed. 03441_ Flight Unit destroyed. 03441_ U-05 Engineer builds a Wall. 03443_ K-01 Serf collects debris. 03445_ P-60 Hacker destroyed. Map ----- +----------------------------------------------------+ | ?????????????????????????????????????????????????? | | ?????????????????????????????????????????????????? | | ?????????????????????????????????????????????????? | | ?????????????????????????????????????????????????? | | ?????????????????????????????????????????????????? | | ?????????????????????????????????????????????????? | | ?????????????????????????????????????????????????? | | ?????????????????????????????????????????????????? | | ??????????????????????????? ?????????????????????? | | ??????????????????????????? ????????????????????? | | ????????????????????? ????? ????????????????????? | | ????????????????????? ????? ????????????????????? | | ????????????????????# ??? ????????????????????? | | ????????????????????# ??? #????????????????????? | | ????????????????????# ??? #????????????????????? | | ????????????????????+ ?"" =#????????????????????? | | ????????????????????# """ #????????????????????? | | ????????????????????# #????????????????????? | | ????????????????????# """ #????????????????????? | | ????????????????????# """ #????????????????????? | | ????????????????????# a""" ?????????????????????? | | ????????????????????# g ?????????????????????? | | ?#################??# ??????????????????????? | | ?# """"""" #??# #??????????????????????? | | ?# """"""" #??# [%= #??????????????????????? | | ?# """"""" #??# ! @#??????????????????????? | | ?# """"""" #??# p##########+###?????????? | | ## #??# !!/ ????????? | | # #?## !!/ ????????? | | # #?#; g !! ????????? | | # ! #### g %! ????????? | | # ## ;u % ????????? | | # ## ;g g "######?????????? | | ########+########### g " #??????????? | | #????# ^ * * " "" #??????????? | | ###### %% %[% ]g " "T ???????????? | | + %%! k " ""????????????? | | ###### = # #??????????? | | #????# #*!! ???????????? | | #????# ########+##;;;;;###?!! ???????????? | | ####### #?????? ##?????????????????? | | #?????? #??????????????????? | | #?????? #??????????????????? | | #?????? #??????????????????? | | T????? #??????????????????? | | ""#???? #??????????????????? | | ######### #### ###???? !!!#??????????????????? | | ????????#/#??? #?????? !! #??????????????????? | | ???????? ???? #?????? !! #??????????????????? | | ???????" ???? ???????? #??????????????????? | +----------------------------------------------------+ Best States ------------- Heat Dissipation 44 Energy Generation 12 Energy Capacity 265 Matter Stores 300 Matter Capacity 300 Sight Range 18 Robot Scan Range 30 Terrain Scan Density 10 Jamming Range 8 Armor Coverage 150 Evasion (%) 44 Recoil Reduction 2 Item Schematics ----------------- None Robot Schematics ------------------ None Fabricated ------------ Nothing Alien Tech Used ----------------- None Achievements -------------- Armchair Analyst Close Call Hey, That's Mine! Release The Drones! Tourist True Hacker Unlikely Earthworm Challenges ------------ None Game ------ Seed LatentGravmagBiocell Manual? 0 Play Time 01:11:57 Cumulative 8.5 hours Start 2020.10.15 @ 08:22:27 End 2020.10.15 @ 09:51:56 Sessions 1 Manual Loads 0 Difficulty Rogue Special Mode None Game No. 12 Rogue 12 Adventurer 0 Explorer 0 Win Type - Total 0 Types 0/0/0/0/0/0/0/0/0 Lore% 8 Gallery% 12 Achievement% 11 Wizard Run 0 Options --------- ASCII 0 Keyboard 1 Movement Numpad Keybinds 0 Fullscreen 2 Font 16/CogWide Map View 76x50 Tactical HUD 1 Map Filters NONE Filters NONE Steam 1 RUN: cb4c7523-67c2-4204-80ed-e00d8452fff3